Cogmind - Beta 11.1 --- EXPLORER MODE // 2022.06.25 @ 12:54:52 Player: Zauchorae Result: Self-destructed Performance ------------- Evolutions (1) 500 Regions Visited (2) 400 Robots Destroyed (23) 115 Value Destroyed (630) 630 Prototype IDs (0) 0 Alien Tech Used (0) 0 Bonus (25) 25 TOTAL SCORE: 1670 Bonus ------- High Alert Combat Kills 25 Cogmind --------- Core Integrity 332/400 Matter 74/300 Energy 100/100 System Corruption 0% Temperature Danger (471) Movement Walking (680) Ox8 Location -9/Materials Parts ------- > --- POWER (2) -------- Light Ion Engine > --- PROPULSION (3) --- Aluminum Leg Aluminum Leg Aluminum Leg > --- UTILITY (3) ------ Huge Storage Unit Huge Storage Unit Huge Storage Unit > --- WEAPON (2) ------- Medium Laser Beam Cannon > --- INVENTORY (25) --- Medium Storage Unit Light Assault Rifle Light Assault Rifle Grenade Launcher Grenade Launcher Peak State ------------ > --- POWER ------------ Light Ion Engine Light Ion Engine > --- PROPULSION ------- Aluminum Leg Aluminum Leg Aluminum Leg > --- UTILITY ---------- Medium Storage Unit Improved Terrain Scanner Light Armor Plating > --- WEAPON ----------- Light Assault Rifle Light Assault Rifle > --- INVENTORY -------- Aluminum Leg Propulsion Shielding Medium Laser Small Laser Beam Cannon Grenade Launcher Grenade Launcher Mining Laser [Rating: 12] Favorites ----------- Power Light Ion Engine Engine Light Ion Engine Propulsion Light Treads Treads Light Treads Leg Aluminum Leg Utility Medium Storage Unit Device Improved Terrain Scanner Storage Medium Storage Unit Protection Light Armor Plating Weapon Light Assault Rifle Energy Gun Medium Laser Energy Cannon Beam Cannon Ballistic Gun Light Assault Rifle Launcher Grenade Launcher Build | -11 -10 -9 ------- Run | Scr Mat Mat Slots Evolved 3 | . 1 2 Power 1 | . 1 . Propulsion 1 | . . 1 Utility 1 | . . 1 Weapon . | . . . Parts Attached 22 | 7 4 11 Power 3 | 1 2 . Engine 3 | 1 2 . Core . | . . . Reactor . | . . . Propulsion 6 | 2 2 2 Treads 2 | 2 . . Leg 4 | . 2 2 Wheel . | . . . Hover . | . . . Flight . | . . . Utility 6 | 2 . 4 Device 1 | . . 1 Storage 4 | 1 . 3 Processor . | . . . Hackware . | . . . Protection 1 | 1 . . Artifact . | . . . Weapon 7 | 2 . 5 Energy Gun 1 | . . 1 Energy Cannon 1 | . . 1 Ballistic Gun 3 | 2 . 1 Ballistic Cannon . | . . . Launcher 2 | . . 2 Special Weapon . | . . . Impact Weapon . | . . . Slashing Weapon . | . . . Piercing Weapon . | . . . Special Melee Weapon . | . . . Unidentified Prototypes . | . . . Parts Lost 1 | . . 1 Power 1 | . . 1 Propulsion . | . . . Utility . | . . . Weapon . | . . . Highest Loss Streak 1 | . . 1 To Critical Strikes . | . . . Average Slot Usage (%) 97 | . 100 94 Engine 21 | . 25 16 Treads 12 | . 19 . Leg 14 | . 5 30 Device 1 | . . 3 Storage 15 | . 12 21 Protection 8 | . 12 3 Ballistic Gun 19 | . 25 10 Launcher 2 | . . 5 Naked Turns . | . . . Heaviest Build 250 | 18 21 250 Greatest Support 40 | 40 40 30 Greatest Overweight (x) 8 | . 1 8 Average Overweight (x) . | . . 1 Largest Inventory Capacity 25 | 10 10 25 Average Capacity 11 | 9 10 19 Most Carried 10 | 10 10 9 Average Carried 8 | 8 9 6 Final Capacity 25 | 10 10 25 Final Carried 10 | 9 10 5 Class Distribution -------------------- 100% | Hacker-Mutant Dominant Class ---------------- Hacker-Mutant | -10/Materials Hacker-Mutant | -9/Materials Resources | -11 -10 -9 ----------- Run | Scr Mat Mat Matter Collected 251 | 202 49 . Remotely . | . . . Salvage Created 663 | 38 126 499 Parts 45 | 9 9 27 Haulers Intercepted 1 | . . 1 Recyclers Shooed 1 | 1 . . Parts Field Recycled . | . . . Retrieved Matter . | . . . Parts Self-Destructed . | . . . Prevented . | . . . Kills | -11 -10 -9 ------- Run | Scr Mat Mat Combat Hostiles Destroyed 14 | . 2 12 Guns 4 | . 2 2 Cannons 2 | . . 2 AOE 8 | . . 8 Classes Destroyed 7 | 1 2 4 Worker 1 | . . 1 Tunneler 4 | 4 . . Hauler 1 | . . 1 Watcher 3 | . 2 1 Grunt 12 | . 2 10 Brawler 1 | . . 1 Sentry 1 | . . 1 Best Kill Streak 6 | 1 2 6 Combat Bots Only 5 | . 2 5 Max Kills in Single Turn 3 | 1 1 3 Gunslinging . | . . . Exploded 2 | . . 2 Melee . | . . . Uniques/NPCs Destroyed . | . . . Combat | -11 -10 -9 -------- Run | Scr Mat Mat Damage Taken 576 | . 120 456 Core 75 | . 7 68 Absorbed by Shields . | . . . Core Remaining (%) 98 | 100 97 . Volleys Fired 43 | . 19 24 Largest 2 | . 2 2 Hottest 110 | . 40 110 Shots Fired 83 | . 38 45 Gun 64 | . 38 26 Cannon 10 | . . 10 Launcher 9 | . . 9 Special . | . . . Kinetic 54 | . 38 16 Thermal 20 | . . 20 Explosive 9 | . . 9 Electromagnetic . | . . . Robot Hit Streak 25 | . 21 25 Robot Miss Streak 1 | . 1 1 Penetration Max . | . . . Secondary Targets 1 | . 1 . Max Gunslinging Chain 1 | . 1 . Shots Hit Robots 64 | . 33 31 Core Hits 45 | 4 11 30 Critical Kills . | . . . Critical Parts Destroyed 1 | . 1 . Critical Strikes 1 | . 1 . Destroy 1 | . 1 . Melee Attacks . | . . . Impact . | . . . Slashing . | . . . Piercing . | . . . Sneak Attacks . | . . . Combat Hostiles . | . . . Follow-up Attacks . | . . . Damage Inflicted 1467 | 67 283 1117 Guns 458 | . 280 178 Cannons 176 | . . 176 Explosions 760 | . . 760 Melee . | . . . Ramming 73 | 67 3 3 Kinetic 360 | . 280 80 Thermal 274 | . . 274 Explosive 760 | . . 760 Electromagnetic . | . . . Impact . | . . . Slashing . | . . . Piercing . | . . . Highest Corruption . | . . . Average Corruption . | . . . Corruption Purged . | . . . Corruption Blocked . | . . . Overload Shots . | . . . Overflow Damage 3 | . . 3 Projectiles . | . . . Explosions 3 | . . 3 Melee . | . . . Knockbacks 1 | 1 . . Impact 1 | 1 . . Kinetic . | . . . Secondary . | . . . Self-Inflicted Damage . | . . . Shots . | . . . Rammed 21 | 20 1 . Targets Rammed 26 | 23 1 2 Kicked 2 | . . 2 Crushed 3 | 3 . . Highest Temperature 471 | . 184 471 Average Temperature 90 | . 60 119 Received Heat Transfer 480 | . 84 396 Effects 1 | . . 1 Short Circuit 1 | . . 1 Siege Activations . | . . . Robots Corrupted . | . . . Combat Hostiles . | . . . Parts Fried . | . . . Impact Corruptions . | . . . Robots Melted . | . . . Combat Hostiles . | . . . Parts Melted 5 | . . 5 Heat Transferred 666 | . . 666 Parts Sabotaged . | . . . Parts Stolen . | . . . Parts Stripped . | . . . Power Chain Reactions . | . . . Missiles Intercepted . | . . . Alert | -11 -10 -9 ------- Run | Scr Mat Mat Peak Influence 460 | 10 83 460 Initial 24 | . 4 24 Average 52 | 4 47 232 Maximum Alert Level 2 | . . 2 Low Security (%) 92 | 100 100 51 Level 1 6 | . . 39 Level 2 1 | . . 9 Level 3 . | . . . Level 4 . | . . . Level 5 . | . . . High Security . | . . . Max Security . | . . . Squads Dispatched 1 | . . 1 Investigation . | . . . Extermination . | . . . Reinforcement 1 | . . 1 Assault . | . . . Garrison . | . . . Intercept . | . . . Searches Triggered . | . . . Construction Impeded . | . . . Haulers Reinforced . | . . . Active Scanning Responses . | . . . Cargo Convoy Interrupts . | . . . Stealth | -11 -10 -9 --------- Run | Scr Mat Mat Distress Signals 2 | . 1 1 Communications Jammed . | . . . Distress Signals . | . . . Times Spotted 20 | . 6 14 Peak Tracking Total 4 | . 4 4 Tactical Retreats . | . . . Traps | -11 -10 -9 ------- Run | Scr Mat Mat Traps Triggered 1 | . 1 . Indirectly . | . . . Trap Hack Attempts . | . . . Triggered . | . . . Disarmed . | . . . Reprogrammed . | . . . Reused . | . . . Traps Extracted . | . . . Installed . | . . . Triggered . | . . . Machines | -11 -10 -9 ---------- Run | Scr Mat Mat Machines Disabled 1 | . . 1 Max in Single Turn 1 | . . 1 Machines Sabotaged . | . . . Garrisons Compromised . | . . . Overloaded Fab Kills . | . . . Hacking | -11 -10 -9 --------- Run | Scr Mat Mat Machines Accessed 1 | . 1 . Terminals . | . . . Fabricators . | . . . Repair Stations . | . . . Recycling Units 1 | . 1 . Scanalyzers . | . . . Garrison Access . | . . . Total Hacks 3 | . 3 . Successful 3 | . 3 . Failed . | . . . Catastrophic . | . . . Database Lockouts . | . . . Manual . | . . . Terminals . | . . . Fabricators . | . . . Repair Stations . | . . . Recycling Units 3 | . 3 . Scanalyzers . | . . . Garrison Access . | . . . Terminal Hacks . | . . . Fabricator Hacks . | . . . Repair Station Hacks . | . . . Recycling Unit Hacks 3 | . 3 . Recycle Component 1 | . 1 . Process 1 | . 1 . Retrieve Matter 1 | . 1 . Scanalyzer . | . . . Garrison Access Hacks . | . . . Unauthorized Hacks . | . . . Terminals . | . . . Fabricators . | . . . Repair Stations . | . . . Recycling Units . | . . . Scanalyzers . | . . . Garrison Access . | . . . Data Cores Recovered . | . . . Used . | . . . Hacking Detections 1 | . 1 . Full Trace Events . | . . . Feedback Events . | . . . Feedback Blocked . | . . . Robot Schematics Acquired . | . . . Robots Built . | . . . Authchips . | . . . Time . | . . . Total Robot Build Rating . | . . . Part Schematics Acquired . | . . . Parts Built . | . . . Authchips . | . . . Time . | . . . Total Part Build Rating . | . . . Parts Repaired . | . . . Time . | . . . Parts Recycled 1 | . 1 . Recycled Matter 5 | . 5 . Retrieved Matter 5 | . 5 . Retrieved Components . | . . . Parts Scanalyzed . | . . . Part Schematics Acquired . | . . . Parts Damaged . | . . . Bothacking | -11 -10 -9 ------------ Run | Scr Mat Mat Used RIF Installer . | . . . Robots Hacked . | . . . Non-combat . | . . . Combat . | . . . Robot Hacks Applied . | . . . Relay Couplers Released . | . . . Fabnet Peak Effective % . | . . . Robots Rewired . | . . . Allies Hacked . | . . . Hacks Repelled . | . . . Allies | -11 -10 -9 -------- Run | Scr Mat Mat Total Allies . | . . . Largest Group . | . . . Highest-Rated Group . | . . . Highest-Rated Ally . | . . . Total Orders . | . . . Ally Attacks . | . . . Total Damage . | . . . Kills . | . . . Allies Corrupted . | . . . Allies Melted . | . . . Intel | -11 -10 -9 ------- Run | Scr Mat Mat Robot Analysis Total . | . . . Derelict Logs Recovered . | . . . Drone Launches . | . . . Drone Recoveries . | . . . Exploration | -11 -10 -9 ------------- Run | Scr Mat Mat Turns Passed 1239 | 708 336 195 Spaces Moved 621 | 406 165 50 Core 4 | 4 . . Treads 532 | 402 130 . Legs 85 | . 35 50 Wheels . | . . . Hover . | . . . Flight . | . . . Fastest Speed 50 | 50 160 120 Average Speed 164 | 158 166 206 Slowest Speed 680 | 160 190 680 Overloaded Moves . | . . . Propulsion Burnouts . | . . . Robots Hopped . | . . . Cave-ins Triggered . | . . . Exploration Rate (%) 20 | 18 33 11 Regions Visited 2 Branch Regions . Pre-discovered Areas . | . . . Known Exits Taken 2 | 1 1 . Unknown Exits Taken . | . . . Scrap Searched . | . . . Spaces Dug . | . . . Terrain Destroyed 45 | . . 45 Melee . | . . . Projectile . | . . . AOE 45 | . . 45 Terrain Rammed . | . . . Walls Destroyed . | . . . Machines Disabled . | . . . Actions | -11 -10 -9 --------- Run | Scr Mat Mat Total 753 | 456 197 100 Wait 1 | 1 . . Move 619 | 405 164 50 Hop . | . . . Pick Up 31 | 18 6 7 Fast Attach . | . . . Attach 16 | 7 4 5 Detach . | . . . Swap 6 | . . 6 Drop 11 | 2 3 6 Fire 43 | . 19 24 Melee . | . . . Ram . | . . . Kick 2 | . . 2 Crush 24 | 23 1 . Escape Stasis . | . . . Rewire . | . . . Trap . | . . . Miscellaneous . | . . . Route ------- -11/Scrapyard -10/Materials -9/Materials History --------- Turn | Location | Event 41 | -11/Scrapyard | Identified exit to Materials 41 | -11/Scrapyard | Discovered exit to Materials (range 15) 709 | -11/Scrapyard | Entered Materials 709 | -10/Materials | Evolved 1 slot: Power x1 730 | -10/Materials | Build established: Hacker-Mutant 1033 | -10/Materials | Identified exit to Materials 1033 | -10/Materials | Discovered exit to Materials (range 5) 1045 | -10/Materials | Entered another Materials area 1045 | -9/Materials | Evolved 2 slots: Propulsion x1, Utility x1 1240 | -9/Materials | Self-destructed Last Messages --------------- K-01 Serf collects debris. U-05 Engineer lays Concrete. Heat Sink melted. Ion Engine melted. G-34 Mercenary destroyed. K-01 Serf collects debris. U-05 Engineer lays Concrete. K-01 Serf collects debris. U-05 Engineer lays Concrete. K-01 Serf collects debris. Lgt. Ion Engine broken. Overheating: Short circuit. U-05 Engineer lays Concrete. G-34 Mercenary destroyed. U-05 Engineer lays Concrete. U-05 Engineer builds a Wall. U-05 Engineer lays Concrete. U-05 Engineer builds a Wall. U-05 Engineer lays Concrete. K-01 Serf collects debris. Map ----- +----------------------------------------------------+ | ???????????????????# #?????????????????????????? | | ???????????????????# #?????????????????????????? | | ???????????????????# #?? ??????????????????????? | | ???? ######+##### #?????????????????????????? | | ???? #?????????????????????????? | | ???? #?????"???????????????????? | | ?????# #???? "???#???????????????? | | ?????############### #???" "?? ????????????????? | | ???????????????????# #???? ?? ????????????????? | | ????????????######## #???? ?? ????????????????? | | ????????????# + #???#+#####???????????????? | | ????????????# # #?## ! ??????#?????????? | | ????????????# " "" # ## #u r# ###??????????????? | | ????????????# "R"" # u [# ?????????????? | | ????????????# """ # u%# #????????????? | | ????????????# # %[!% # *[[?????????????? | | ????????#???######## [* # *[??????????????? | | ?????????????? ??? + [ # *???? ??????????? | | ???????????????????# # ?????? ??????????? | | ??????????#?????"??# #?? ???????????????? | | ???????????????????# #?????#????????????? | | ???????????????? ??# * u##?????????????????? | | ???????????## ##???# ! =% "#??????? ?????????? | | ??????????## [ ## ! T##????????????????? | | ??????????# ###### %= "##????????????????? | | ???????????## =% @!= a ##????????????????? | | ????????? + [% =!!! ##??????#??????????? | | ????????? # # % T ????????????? | | ??????????## ####### = % o ???????????? | | ?????????????####### = """ ??????????? | | ???????????????#???# """ ???????????? | | ???????????????????# = """?????????????? | | ???????????????????# %%[ """?????????????? | | ???????????????????# =! =%=[ + ?????????????? | | ??????????????????? |%| k % # ?????????????? | | ?????????????????? !| # % ????????????? | | ????????????????? #?#####????????????? | | ????????????????? "T" ??????????????????? | | ???????????????? ?????????????????? | | ????????????????? ?????????????????? | | ??????????????????? ???####????????????????????? | | ?????????????????????????????????????????????????? | | ?????????????????????????????????????????????????? | | ?????????????????????????????????????????????????? | | ?????????????????????????????????????????????????? | | ?????????????????????????????????????????????????? | | ?????????????????????????????????????????????????? | | ?????????????????????????????????????????????????? | | ?????????????????????????????????????????????????? | | ?????????????????????????????????????????????????? | +----------------------------------------------------+ Best States ------------- Heat Dissipation 28 Energy Generation 15 Energy Capacity 150 Matter Stores 300 Matter Capacity 300 Sight Range 16 Terrain Scan Range 16 Terrain Scan Density 10 Armor Coverage 150 Resistance: KI 35 Resistance: TH 35 Resistance: EX 35 Resistance: EM 35 Resistance: I 35 Resistance: S 35 Resistance: P 35 Evasion (%) 45 Recoil Reduction 2 Offensive Hacking 20 Item Schematics ----------------- None Robot Schematics ------------------ None Fabricated ------------ Nothing Alien Tech Used ----------------- None Achievements -------------- Tank Challenges ------------ None Game ------ Seed Shimmering Manual? 1 Play Time 00:19:18 Cumulative 15.3 hours Start 2022.06.25 @ 12:33:33 End 2022.06.25 @ 12:54:52 Sessions 1 Manual Loads 0 Difficulty Explorer Special Mode None Game No. 5 Rogue 0 Adventurer 0 Explorer 5 Win Type - Total 0 Types 0/0/0/0/0/0/0/0/0 Lore% 7 Gallery% 13 Achievement% 12 Wizard Run 0 Options --------- ASCII 0 Keyboard 0 Movement Numpad Keybinds 0 Fullscreen 1 Font 18/SmallcapsGlow Map View 76x50 Tactical HUD 1 Map Filters NONE Filters NONE Steam 1 RUN: af372eab-af8e-4727-a6fa-b9a2b9466346